[Event "Chinese League Div-A Rapid 2022"]
[Site "Fuling,Chongqing"]
[Date "2022.09.07"]
[Round "2.3"]
[White "Xu, Zhihang"]
[Black "Zhang, Zhong"]
[Result "0-1"]
[ECO "E15"]
[WhiteElo "2489"]
[BlackElo "2617"]
[Annotator "TA"]
[PlyCount "156"]
[EventDate "2022.09.07"]
[EventType "team-tourn"]
[EventCountry "CHN"]
[SourceTitle "playchess.com"]
[Source "ChessBase"]
[SourceQuality "1"]
[TimeControl "1500+10"]

{[%evp 13,156,16,27,22,28,3,6,-6,-12,-17,0,0,0,0,18,16,29,0,48,43,106,0,0,-4,0,0,0,0,0,0,0,0,0,-18,-19,-19,-25,-89,-6,-11,0,0,0,0,0,0,0,-13,0,0,0,0,0,0,0,0,0,0,0,0,0,-4,-21,-59,-56,-45,0,0,0,-13,0,-10,-6,-16,-18,-6,-6,-17,-17,-96,-75,-145,-143,-144,-89,-143,-100,-100,-100,-104,-14,-14,-20,-44,0,0,0,0,0,-28,0,0,0,0,0,0,0,0,0,0,0,-4,-5,-5,-6,-6,0,-170,-189,-492,-481,-2148,-1935,-1814,-1897,-2649,-2922,-2593,-2241,-12836,-12836,-12837,-12834,-2123,-12834,-12838,-12839,-12841,-12839,-12839,-12839,-12840,-12841,-12841,-12841]} 1. d4 {[%emt 0:00:04]} Nf6 {[%emt 0:00:01]} 2. c4 {[%emt 0:00:03]} e6 {[%emt 0:00:02]} 3. Nf3 {[%emt 0:00:02]} b6 {[%emt 0:00:10]} 4. g3 {[%emt 0:00:08]} Ba6 {[%emt 0:00:03]} 5. b3 {[%emt 0:00:32]} d5 {[%emt 0:00:11]} 6. Bg2 {[%emt 0:00:02]} Bb4+ {[%emt 0:00:34]} 7. Bd2 {[%emt 0:00:07]} Bd6 {[%emt 0:00:26]} 8. O-O {[%emt 0:00:09] E15: Queen's Indian: 4 g3 sidelines, 4 g3 Ba6 and 4 g3 Bb7 early deviations.} O-O {[%emt 0:00:03] is the legacy move (8...Nbd7).} 9. Bg5 {[%emt 0:02:30]} Nbd7 {[%emt 0:00:11]} 10. cxd5 {[%emt 0:00:57] The position is equal.} exd5 {[%emt 0:00:05]} 11. Nc3 {[%emt 0:00:03]} h6 {[%emt 0:00:11]} 12. Bf4 {[%emt 0:00:02] [#]} Bb4 $146 {[%emt 0:01:03]} ({Predecessor:} 12... Bxf4 13. gxf4 c6 14. Ne5 Rc8 15. Bf3 Qe7 16. Qd2 Bb7 17. e3 Rfe8 18. Kh1 Kh8 19. Rg1 Nf8 {½-½ (70) Szczepkowska,K (2415)-Tarasova,V (2226) Chess.com INT 2021}) 13. Rc1 {[%emt 0:00:20]} Rc8 {[%emt 0:00:35]} 14. Ne5 {[%emt 0:00:51]} c6 {[%emt 0:00:06]} 15. a3 {[%emt 0:00:55]} Be7 {[%emt 0:00:13]} (15... Bxc3 $11 16. Rxc3 Nxe5 17. Bxe5 Ne4) 16. b4 {[%emt 0:00:10]} g5 {[%emt 0:02:10]} (16... Nxe5 $14 17. dxe5 Ne8) 17. Nxd7 {[%emt 0:00:41]} (17. Bd2 $16) 17... Qxd7 $11 {[%emt 0:00:14]} 18. Bd2 {[%emt 0:02:07]} Rfe8 {[%emt 0:00:16]} 19. Re1 {[%emt 0:00:26]} Bf8 {[%emt 0:01:35]} 20. Qa4 {[%emt 0:03:12]} Bc4 {[%emt 0:00:26]} 21. e4 {[%emt 0:00:05]} dxe4 {[%emt 0:02:50]} 22. Nxe4 {[%emt 0:00:17]} Nxe4 {[%emt 0:00:09]} 23. Rxe4 {[%emt 0:00:04]} b5 {[%emt 0:03:04]} 24. Qc2 {[%emt 0:00:11]} Bg7 {[%emt 0:00:03]} 25. Be3 {[%emt 0:02:16] [#]} (25. Rxe8+ $11 {remains equal.} Rxe8 26. Be3) 25... Rxe4 {[%emt 0:01:04]} (25... Red8 $1 $17 {White must now prevent ...Bd5.} 26. Bd2 Bd5) 26. Qxe4 {[%emt 0:01:59]} Bd5 {[%emt 0:00:23]} 27. Qc2 {[%emt 0:00:08]} Bxg2 {[%emt 0:00:16]} 28. Kxg2 {[%emt 0:00:02]} Qd5+ {[%emt 0:00:01]} 29. Kg1 {[%emt 0:00:04]} Bf8 {[%emt 0:00:25] Against Qc5} (29... Bxd4 $2 30. Rd1 $18) 30. Qd1 {[%emt 0:00:59]} Re8 {[%emt 0:00:17]} 31. h4 {[%emt 0:00:19]} Re6 {[%emt 0:00:30]} 32. Qh5 {[%emt 0:01:11]} Be7 {[%emt 0:00:14]} 33. hxg5 {[%emt 0:00:47]} hxg5 {[%emt 0:00:03]} 34. Qh1 {[%emt 0:00:06]} Re4 {[%emt 0:03:57]} 35. Rc3 {[%emt 0:02:26]} Kg7 {[%emt 0:00:10]} 36. Qf3 {[%emt 0:00:27]} f5 {[%emt 0:00:43]} 37. Rc1 {[%emt 0:00:55]} Kg6 {[%emt 0:02:12]} 38. Qh1 {[%emt 0:00:34]} Bd6 $1 {[%emt 0:00:41]} 39. Qg2 $1 {[%emt 0:01:18]} Be7 {[%emt 0:01:18]} 40. Qh1 {[%emt 0:00:07]} Qe6 {[%emt 0:00:52]} 41. Qf3 {[%emt 0:01:43]} ({Don't go for} 41. Qh8 $2 Rxe3 42. Qe8+ Kg7 43. Rxc6 Re1+ 44. Kh2 Qf7 45. Qxf7+ Kxf7 $19) 41... a6 {[%emt 0:00:24]} 42. Rc3 {[%emt 0:00:19]} Qd5 {[%emt 0:00:24]} 43. Qd1 {[%emt 0:00:39]} f4 {[%emt 0:01:24]} 44. gxf4 {[%emt 0:01:08]} gxf4 {[%emt 0:00:02]} 45. Qg4+ {[%emt 0:00:18]} Kf7 {[%emt 0:00:14]} 46. Qf3 {[%emt 0:00:19]} (46. f3 $11 Rxd4 47. Bf2) 46... Bd6 $17 {[%emt 0:00:11] Hoping for ...Ke7.} 47. Kg2 {[%emt 0:00:26]} (47. Kf1 $142) 47... Ke7 {[%emt 0:01:03]} 48. Bc1 {[%emt 0:00:01]} Kd7 {[%emt 0:00:20]} ({Worse is} 48... Qxd4 49. Bb2 Qd5 50. Rd3 $17) ({But not} 48... Rxd4 $6 49. Rxc6 Qg8+ 50. Kf1 $11) ({Black should play} 48... Qg8+ 49. Kf1 Qd5) 49. Kf1 {[%emt 0:00:26]} ({Better is} 49. Rd3) 49... Rxd4 {[%emt 0:00:36] Black is more active.} 50. Qxd5 {[%emt 0:00:02]} cxd5 {[%emt 0:00:12][%mdl 4096] Endgame KRB-KRB} 51. Ke2 {[%emt 0:00:17] [#]} Be5 {[%emt 0:00:31]} (51... Rc4 $1 $17 {[%cal Rc4c3]} 52. Bd2 Kc6) 52. Rh3 $11 {[%emt 0:00:10]} Rc4 {[%emt 0:00:13]} 53. Bd2 {[%emt 0:00:14]} Ke6 {[%emt 0:00:13]} 54. Rh6+ {[%emt 0:00:09]} Bf6 {[%emt 0:00:03] And now ...Kf5 would win.} 55. Kd3 {[%emt 0:00:05]} Kf5 {[%emt 0:00:14]} 56. Rh5+ {[%emt 0:00:04]} Ke6 {[%emt 0:00:01]} 57. Rh6 {[%emt 0:00:01]} Rd4+ {[%emt 0:00:01]} 58. Kc2 {[%emt 0:00:02][%cal Oh6f6] Rxf6+! is the strong threat.} Rc4+ {[%emt 0:00:06]} 59. Kd3 {[%emt 0:00:01]} Kf7 {[%emt 0:00:31]} 60. f3 {[%emt 0:00:12]} Kg7 {[%emt 0:00:10]} 61. Rh5 {[%emt 0:00:03]} Rd4+ {[%emt 0:00:02]} 62. Kc2 {[%emt 0:00:02]} Kg6 {[%emt 0:00:01]} 63. Rh2 {[%emt 0:00:08]} Rc4+ {[%emt 0:00:09]} 64. Kd3 {[%emt 0:00:01]} Bb2 {[%emt 0:00:11]} 65. Rg2+ $2 {[%emt 0:00:30]} (65. Bxf4 $1 $11 Bxa3 66. Rh6+ Kf5 67. Be3) 65... Kf5 {[%emt 0:00:01]} 66. Rg8 $2 {[%emt 0:00:29]} (66. Rg1 {is more resistant.}) 66... Bxa3 $19 {[%emt 0:00:08] Black is clearly winning.} 67. Rf8+ {[%emt 0:00:01]} (67. Rd8 $142 Ke6 68. Re8+ Kd6 69. Bc3) 67... Ke6 {[%emt 0:00:05]} 68. Re8+ {[%emt 0:00:13]} Kd7 {[%emt 0:00:12]} 69. Ra8 {[%emt 0:00:16]} Bxb4 {[%emt 0:00:06]} 70. Ra7+ {[%emt 0:00:19]} Ke6 {[%emt 0:00:10] aiming for ...Bxd2.} 71. Rxa6+ {[%emt 0:00:06]} Ke5 {[%emt 0:00:01]} 72. Ra8 {[%emt 0:00:24]} Bxd2 {[%emt 0:00:06] KRB-KR} 73. Re8+ {[%emt 0:00:02]} Kd6 {[%emt 0:00:02]} 74. Kxd2 {[%emt 0:00:01]} b4 {[%emt 0:00:07]} 75. Kd3 {[%emt 0:00:13]} Kc7 {[%emt 0:00:10]} 76. Re7+ {[%emt 0:00:10]} Kc6 {[%emt 0:00:02]} 77. Re8 {[%emt 0:00:05]} Rc3+ {[%emt 0:00:22]} 78. Kd4 {[%emt 0:00:02]} Rxf3 {[%emt 0:00:02] Weighted Error Value: White=0.14 (very precise) /Black=0.15 (very precise)} 0-1

[Event "Chinese League Div-A Rapid 2022"]
[Site "Fuling,Chongqing"]
[Date "2022.09.07"]
[Round "2.4"]
[White "Ju, Wenjun"]
[Black "Zhai, Mo"]
[Result "1-0"]
[ECO "D24"]
[WhiteElo "2560"]
[BlackElo "2374"]
[Annotator "RC"]
[PlyCount "69"]
[EventDate "2022.09.07"]
[EventType "team-tourn"]
[EventCountry "CHN"]
[SourceTitle "playchess.com"]
[Source "ChessBase"]
[SourceQuality "1"]
[TimeControl "1500+10"]

1. d4 {[%emt 0:00:03]} Nf6 {[%emt 0:00:01]} 2. c4 {[%emt 0:00:01]} e6 {[%emt 0:00:02]} 3. Nf3 {[%emt 0:00:01]} d5 {[%emt 0:00:03]} 4. Nc3 {[%emt 0:00:02]} dxc4 {[%emt 0:00:03]} 5. e4 {[%emt 0:00:01]} Bb4 {[%emt 0:00:05]} 6. Bxc4 {[%emt 0:00:02]} Nxe4 {[%emt 0:00:07]} 7. O-O {[%emt 0:00:02]} Nf6 {[%emt 0:00:03]} 8. Qa4+ {[%emt 0:00:02]} Nc6 {[%emt 0:00:04]} 9. Ne5 {[%emt 0:00:04]} a5 {[%emt 0:02:15]} 10. Nxc6 {[%emt 0:00:10]} bxc6 {[%emt 0:00:02]} 11. Qxc6+ {[%emt 0:00:01]} Bd7 {[%emt 0:00:02]} 12. Qf3 {[%emt 0:00:01]} O-O {[%emt 0:00:09]} 13. Rd1 {[%emt 0:00:02]} Rb8 {[%emt 0:01:30]} 14. b3 {[%emt 0:00:01]} Bd6 {[%emt 0:03:01]} 15. Bg5 {[%emt 0:00:57]} Be7 {[%emt 0:04:13]} 16. Bf4 {[%emt 0:04:53]} Bd6 {[%emt 0:02:12]} 17. Be5 {[%emt 0:00:01]} Rb6 {[%emt 0:02:13]} 18. h3 {[%emt 0:03:47]} Bc6 {[%emt 0:01:18]} 19. Qg3 {[%emt 0:00:02]} Qe7 {[%emt 0:00:16]} 20. Re1 {[%emt 0:02:55]} Rd8 {[%emt 0:04:36]} 21. Rad1 {[%emt 0:00:03]} Bxe5 {[%emt 0:00:24]} 22. Qxe5 {[%emt 0:01:51]} a4 {[%emt 0:02:29]} 23. d5 {[%emt 0:03:16]} Be8 {[%emt 0:01:36]} 24. dxe6 {[%emt 0:00:16]} fxe6 {[%emt 0:00:26]} 25. Rxd8 {[%emt 0:00:45]} Qxd8 {[%emt 0:00:01]} 26. Bxe6+ {[%emt 0:00:02]} Kf8 {[%emt 0:01:28]} 27. bxa4 {[%emt 0:00:14]} Rd6 {[%emt 0:00:24]} 28. Nb5 {[%emt 0:00:54]} Bxb5 {[%emt 0:00:15]} 29. axb5 {[%emt 0:00:03]} g6 {[%emt 0:00:12]} 30. a4 {[%emt 0:00:29]} Kg7 {[%emt 0:00:13]} 31. a5 {[%emt 0:00:10]} Rd1 {[%emt 0:00:13]} 32. Rxd1 {[%emt 0:00:12]} Qxd1+ {[%emt 0:00:02]} 33. Kh2 {[%emt 0:00:01]} Qc2 {[%emt 0:00:10]} 34. b6 {[%emt 0:00:25]} cxb6 {[%emt 0:00:11]} 35. axb6 {[%emt 0:00:01]} 1-0

[Event "Chinese League Div-A Rapid 2022"]
[Site "Fuling,Chongqing"]
[Date "2022.09.07"]
[Round "2.5"]
[White "Ning, Kaiyu"]
[Black "Hou, Yifan"]
[Result "1/2-1/2"]
[ECO "E16"]
[WhiteElo "2374"]
[BlackElo "2650"]
[Annotator "TA"]
[PlyCount "92"]
[EventDate "2022.09.07"]
[EventType "team-tourn"]
[EventCountry "CHN"]
[SourceTitle "playchess.com"]
[Source "ChessBase"]
[SourceQuality "1"]
[TimeControl "1500+10"]

{[%evp 18,92,38,22,24,20,22,18,13,13,8,0,18,0,15,-19,-8,-12,-9,-9,-14,-14,0,0,6,-26,0,0,0,-12,-8,-50,-44,-89,12,11,20,36,25,-127,-118,-124,-119,-125,-129,-122,-126,-181,-105,-108,-109,-149,-161,-152,-160,-159,-149,-129,-86,-141,-75,-99,-27,-152,0,-85,-20,-27,-25,-136,-136,-126,0,0,0,0,0]} 1. d4 {[%emt 0:00:02]} Nf6 {[%emt 0:00:01]} 2. c4 {[%emt 0:00:02]} e6 {[%emt 0:00:02]} 3. Nf3 {[%emt 0:00:02]} b6 {[%emt 0:00:01]} 4. g3 {[%emt 0:00:02]} Bb4+ {[%emt 0:00:04]} 5. Bd2 {[%emt 0:00:12]} c5 {[%emt 0:00:01]} 6. Bxb4 {[%emt 0:00:13]} cxb4 {[%emt 0:00:01]} 7. Bg2 {[%emt 0:00:02]} Bb7 {[%emt 0:00:01]} 8. O-O {[%emt 0:00:02]} O-O {[%emt 0:00:02]} 9. Qd3 {[%emt 0:00:43]} d6 {[%emt 0:00:26]} 10. Nbd2 {[%emt 0:00:09]} Qc7 {[%emt 0:00:12] E16: Queen's Indian: 4 g3 Bb7 5 Bg2 Bb4+.} 11. e4 {[%emt 0:00:07]} e5 {[%emt 0:00:04]} 12. Rfe1 {[%emt 0:00:26]} a5 {[%emt 0:02:04]} 13. Rac1 {[%emt 0:00:19]} Re8 {[%emt 0:02:16]} 14. h3 {[%emt 0:01:23] [#]} h6 $146 {[%emt 0:02:36]} ({Predecessor:} 14... Na6 15. Nh4 g6 16. Rcd1 Rac8 17. b3 Qe7 18. Nf1 Nc7 19. Ne3 Ne6 20. dxe5 dxe5 {½-½ (43) Piket,J (2640)-Nikolic,P (2655) Rotterdam 1997}) 15. Nf1 {[%emt 0:05:48]} Nbd7 {[%emt 0:03:04][%cal Bb8d7,Bd7c5,Bc5e6][%mdl 32]} 16. N3d2 {[%emt 0:00:28]} exd4 {[%emt 0:04:20]} 17. Qxd4 {[%emt 0:00:15]} Nc5 {[%emt 0:00:01]} 18. f3 {[%emt 0:01:38]} Nfd7 {[%emt 0:02:13][%cal Bf6d7,Bd7c5,Bc5b7,Bb7c5][%mdl 32]} 19. Ne3 {[%emt 0:05:58]} Ne6 {[%emt 0:01:40]} 20. Qd3 {[%emt 0:01:06]} Nec5 {[%emt 0:00:37]} 21. Qd4 {[%emt 0:00:15]} (21. Qc2 {is interesting.} d5 22. cxd5 Qxg3 23. Nf5) 21... Ne6 {[%emt 0:03:10]} (21... Ne5 {is more complex.} 22. Nf5 Bc8 23. Rb1 Bxf5 24. exf5 Rad8) 22. Qd3 {[%emt 0:00:02]} Ndc5 {[%emt 0:00:15]} 23. Qf1 {[%emt 0:00:18]} Qd8 {[%emt 0:00:13]} 24. f4 {[%emt 0:04:21]} Qf6 $1 {[%emt 0:00:02]} 25. e5 {[%emt 0:01:31] [#]} dxe5 {[%emt 0:00:01]} (25... Bxg2 $1 $17 26. Kxg2 (26. Qxg2 dxe5) 26... dxe5) 26. Bxb7 $11 {[%emt 0:00:01]} Nxb7 {[%emt 0:00:01]} 27. Ne4 {[%emt 0:01:11]} Qd8 {[%emt 0:00:16] aiming for ...Qd4.} 28. f5 $2 {[%emt 0:00:24]} (28. Rcd1 $1 $11 Qb8 29. fxe5) 28... Nd4 $17 {[%emt 0:01:15]} 29. f6 {[%emt 0:00:07]} Nc5 {[%emt 0:00:44]} 30. Nd5 {[%emt 0:00:19]} Re6 {[%emt 0:00:49]} 31. Rcd1 {[%emt 0:00:42]} Ra7 {[%emt 0:00:28]} ({Not} 31... Nxe4 32. Rxe4 Qd6 33. Rg4 (33. fxg7 f5 $17)) 32. Kh2 {[%emt 0:00:10]} (32. Qf2 $17 {keeps fighting.}) 32... Rd7 {[%emt 0:00:10]} ({Black should play} 32... Nxe4 $19 33. Rxe4 b5) 33. fxg7 {[%emt 0:01:09]} Kxg7 {[%emt 0:00:16]} 34. Nxc5 {[%emt 0:00:46]} bxc5 {[%emt 0:00:01]} 35. Re4 {[%emt 0:00:07]} Rxd5 {[%emt 0:01:13]} 36. cxd5 {[%emt 0:00:02]} Qxd5 {[%emt 0:00:02]} 37. Qg2 {[%emt 0:00:07]} Rg6 {[%emt 0:00:48]} 38. Rde1 {[%emt 0:00:03]} (38. Re3 $142 Qxa2 39. Rxe5) 38... Qc6 {[%emt 0:01:05]} ({Better is} 38... Qxa2 {Strongly threatening ...a4.} 39. Kh1 (39. Rxe5 $2 Rf6 $19) 39... f6) 39. Rf1 {[%emt 0:00:34]} Qe6 {[%emt 0:00:20]} ({Black should try} 39... Qd6 $17 40. Rfe1 Qd5) 40. Rfe1 {[%emt 0:00:11]} (40. Re3 $1 $11) 40... Rg5 $2 {[%emt 0:00:24]} (40... Qxa2 $17 {...a4 is the strong threat.} 41. Kh1 (41. Rxe5 $2 Rf6 $19) 41... f6) 41. b3 {[%emt 0:00:06] [#]} (41. h4 $11 {keeps the balance.} Rf5 42. Rg4+ Kf6 43. Qa8) 41... Kh7 {[%emt 0:00:28]} (41... Qd5 $1 $17) 42. h4 $11 {[%emt 0:00:07]} Rf5 {[%emt 0:00:01] White must now prevent ...Qf6.} 43. Rf1 {[%emt 0:00:06]} (43. Rf4 $1 $11) 43... Rxf1 {[%emt 0:00:10]} 44. Qxf1 {[%emt 0:00:02]} Qd5 {[%emt 0:00:08]} (44... a4 $17 45. Re3 Kg7) 45. Qf6 {[%emt 0:00:17]} Qxe4 {[%emt 0:00:18]} 46. Qxf7+ {[%emt 0:00:02]} Kh8 {[%emt 0:00:00] Black had all chances to win.  Weighted Error Value: White=0.30/Black=0.25 (precise)} 1/2-1/2

[Event "Chinese League Div-A Rapid 2022"]
[Site "Fuling,Chongqing"]
[Date "2022.09.07"]
[Round "2.6"]
[White "Bu, Xiangzhi"]
[Black "Wan, Yunguo"]
[Result "1/2-1/2"]
[ECO "D35"]
[WhiteElo "2709"]
[BlackElo "2508"]
[Annotator "TA"]
[PlyCount "34"]
[EventDate "2022.09.07"]
[EventType "team-tourn"]
[EventCountry "CHN"]
[SourceTitle "playchess.com"]
[Source "ChessBase"]
[SourceQuality "1"]
[TimeControl "1500+10"]

{[%evp 12,34,0,0,6,12,8,8,9,-22,-14,-18,-4,-39,-51,-56,-8,-31,0,-10,0,-41,0,-14,0]} 1. c4 {[%emt 0:00:03] ChessBase} Nf6 {[%emt 0:00:06]} 2. Nc3 {[%emt 0:00:04]} e6 {[%emt 0:00:03]} 3. Nf3 {[%emt 0:00:33]} d5 {[%emt 0:00:03]} 4. cxd5 {[%emt 0:00:01]} exd5 {[%emt 0:00:04]} 5. d4 {[%emt 0:00:01]} c6 {[%emt 0:01:00]} 6. Bf4 {[%emt 0:00:03]} Bf5 {[%emt 0:01:43][%cal Bc8f5,Bf5h7,Bh7e4][%mdl 32]} 7. e3 {[%emt 0:00:01]} h6 {[%emt 0:00:55] D35: Queen's Gambit Declined: Exchange Variation.} 8. Ne5 {[%emt 0:01:47]} Nbd7 {[%emt 0:00:33]} 9. g4 {[%emt 0:00:22]} Bh7 {[%emt 0:00:35] [#]} 10. Nd3 $146 {[%emt 0:01:46]} ({Predecessor:} 10. Bd3 Bxd3 11. Qxd3 Bb4 12. f3 Nf8 13. Kf2 Ne6 14. Bg3 h5 15. Bh4 g5 16. Qf5 gxh4 {0-1 (18) Yagubov,E-Yagupov,I (2450) St Petersburg 1996 CBM 052 [ChessBase]}) 10... Ne4 {[%emt 0:00:55]} 11. Qb3 {[%emt 0:00:55]} Nxc3 {[%emt 0:02:31]} 12. Qxc3 {[%emt 0:03:14]} (12. bxc3 $5 {[%cal Rb3b7]} Be4 13. Rg1 $11) 12... Be4 {[%emt 0:01:42]} 13. Rg1 {[%emt 0:00:01][%cal Oh2h4]} Qb6 {[%emt 0:00:39]} (13... Be7 $15) 14. Qb3 {[%emt 0:03:06]} Qa5+ {[%emt 0:00:40]} 15. Qc3 {[%emt 0:00:04]} Qb6 {[%emt 0:00:05]} 16. Qb3 {[%emt 0:00:02]} Qa5+ {[%emt 0:00:45]} 17. Qc3 {[%emt 0:00:07]} Qb6 {[%emt 0:00:05] Weighted Error Value: White=0.08 (flawless) /Black=0.13 (very precise)} 1/2-1/2

[Event "Chinese League Div-A Rapid 2022"]
[Site "Fuling,Chongqing"]
[Date "2022.09.07"]
[Round "2.7"]
[White "Liu, Yan"]
[Black "Zhang, Pengxiang"]
[Result "1/2-1/2"]
[ECO "A20"]
[WhiteElo "2530"]
[BlackElo "2564"]
[Annotator "TA"]
[PlyCount "98"]
[EventDate "2022.09.07"]
[EventType "team-tourn"]
[EventCountry "CHN"]
[SourceTitle "playchess.com"]
[Source "ChessBase"]
[SourceQuality "1"]
[TimeControl "1500+10"]

{[%evp 11,98,0,0,0,14,35,48,24,45,20,13,12,11,-15,26,26,97,87,95,-11,-8,-7,-6,-50,-45,-106,-114,-101,-109,-107,-112,-112,-17,-33,0,0,4,0,25,0,33,0,0,0,0,0,47,49,49,37,34,37,93,21,72,0,95,83,120,19,19,22,25,0,46,35,35,8,8,0,14,0,14,14,14,14,14,0,0,0,0,0,0,0,0,-2,-2,-8,-8]} 1. c4 {[%emt 0:00:03]} e5 {[%emt 0:00:01]} 2. g3 {[%emt 0:00:01]} Nf6 {[%emt 0:00:03]} 3. Bg2 {[%emt 0:00:03]} d5 {[%emt 0:01:19]} 4. cxd5 {[%emt 0:00:02]} Nxd5 {[%emt 0:00:01]} 5. Nf3 {[%emt 0:00:04]} Nc6 {[%emt 0:00:12]} 6. O-O {[%emt 0:00:03]} Nb6 {[%emt 0:00:41]} 7. b3 {[%emt 0:00:03] A20: English Opening: 1...e5.} e4 {[%emt 0:02:00] Recently 7...Be6 got a lot of attention.} 8. Ne1 {[%emt 0:00:10]} Bf5 {[%emt 0:00:03]} 9. Nc3 {[%emt 0:02:14] White is slightly better.} Qe7 {[%emt 0:00:04] [#]} 10. f3 $146 {[%emt 0:00:41]} ({Predecessor:} 10. d3 O-O-O 11. Be3 exd3 12. Nxd3 h5 13. Rc1 Kb8 14. Nb5 Be4 15. Bxe4 Qxe4 16. Bf4 {1-0 (43) Gukesh,D (2547)-Janik,I (2466) Sitges 2019}) 10... exf3 {[%emt 0:01:32]} 11. Nxf3 {[%emt 0:00:54]} O-O-O {[%emt 0:00:10]} 12. Bb2 {[%emt 0:01:16]} (12. a4 $5 {[%cal Ra4a5]}) 12... Qd7 {[%emt 0:00:29]} 13. Rc1 {[%emt 0:03:18] Hoping for Nb5.} Kb8 {[%emt 0:00:30]} (13... f6 $11) 14. Nb5 $16 {[%emt 0:01:29] Ne5 is the strong threat.} f6 {[%emt 0:01:30] [#] Inhibits Ne5.} 15. Nfd4 {[%emt 0:07:33]} ({Only move:} 15. Rxc6 $1 $16 Qxc6 16. Nfd4) 15... Nxd4 $11 {[%emt 0:00:43]} 16. Nxd4 {[%emt 0:01:17]} Bg6 {[%emt 0:03:08]} 17. Nf3 {[%emt 0:01:21]} Bb4 {[%emt 0:00:42][%cal Rb4d2]} 18. d3 {[%emt 0:01:51]} (18. Nd4 $15) 18... Nd5 $17 {[%emt 0:01:20] White must now prevent ...Ne3.} 19. Bd4 {[%emt 0:00:02][%cal Oa2a3] Prevents Ne3.} c5 {[%emt 0:01:26]} 20. Rxc5 {[%emt 0:03:42]} Bxc5 {[%emt 0:00:18]} 21. Bxc5 {[%emt 0:00:01]} Rhe8 {[%emt 0:00:16]} (21... Qc7 $1 $17 {[%cal Rc7c5]} 22. Bd4 Qa5) 22. Qd2 $1 $11 {[%emt 0:00:06]} Rc8 {[%emt 0:01:31]} (22... Qe6 $5 {[%cal Re6e2]} 23. e4 Nc7 $15) 23. Bf2 {[%emt 0:00:17] This bishop pair is nice.} Bf7 {[%emt 0:02:25]} 24. Nd4 {[%emt 0:00:16]} Nc3 {[%emt 0:01:32]} 25. e4 {[%emt 0:01:09]} Nb5 {[%emt 0:01:39]} 26. Qf4+ {[%emt 0:00:48]} Ka8 {[%emt 0:00:14]} 27. Bh3 {[%emt 0:00:07]} Qxh3 {[%emt 0:02:02]} 28. Nxb5 {[%emt 0:00:01]} Qd7 {[%emt 0:00:01] Against Nc7+} (28... Re5 $11 {is more appropriate.} 29. Nxa7 Rc2) 29. Nd6 $14 {[%emt 0:00:28]} Rc2 {[%emt 0:01:31] aiming for ...Rd8.} 30. Nxe8 {[%emt 0:00:03]} Bxe8 {[%emt 0:00:04]} 31. d4 {[%emt 0:00:24]} Bg6 {[%emt 0:00:31]} (31... b6 $14) 32. d5 {[%emt 0:00:12]} (32. Re1 $16) 32... b6 {[%emt 0:00:47]} ({Don't play} 32... Qh3 33. e5 (33. Qh4 Qxh4 34. gxh4 Bxe4 $11) 33... fxe5 34. Qf8+ Qc8 35. Qa3 $16) (32... Re2 $1 $11 {keeps the balance.}) 33. a4 {[%emt 0:00:27]} ({White should try} 33. Re1 $16) 33... Kb7 {[%emt 0:00:18]} (33... Qh3 $2 34. a5 bxa5 35. Qe3 $18) (33... Re2 $1 $11) 34. Re1 {[%emt 0:00:03]} h5 {[%emt 0:00:28] [#]} 35. e5 {[%emt 0:00:04]} ({White should play} 35. a5 $1 $16) 35... Qxd5 $11 {[%emt 0:00:11]} 36. exf6 {[%emt 0:00:03]} gxf6 {[%emt 0:00:01]} 37. Qxf6 {[%emt 0:00:09] Really sharp!} Qf5 {[%emt 0:00:52]} ({Don't take} 37... Bf7 38. b4 $16) (37... Bf5 $1 $11 {is superior.}) 38. Re7+ {[%emt 0:00:15]} Rc7 $1 {[%emt 0:00:09]} (38... Ka6 $2 {[#] leads to mate.} 39. Rxa7+ $3 {[%mdl 512]} Kxa7 40. Qxb6+ Ka8 41. Qa7#) 39. Rxc7+ {[%emt 0:00:07]} Kxc7 $14 {[%emt 0:00:01][%mdl 4096] Endgame KQB-KQB. The position is equal.} 40. Qe7+ {[%emt 0:00:13]} Kc6 {[%emt 0:00:26]} 41. Qe1 {[%emt 0:00:19]} Qb1 {[%emt 0:00:19]} 42. Qxb1 {[%emt 0:00:08]} (42. b4 {keeps more tension.} Qd3 43. Be3 a5 44. Qc1+) 42... Bxb1 $11 {[%emt 0:00:01] KB-KB} 43. b4 {[%emt 0:00:01]} a5 {[%emt 0:00:08]} 44. bxa5 {[%emt 0:00:07]} bxa5 {[%emt 0:00:01]} 45. Be1 {[%emt 0:00:11]} Kb6 {[%emt 0:00:03]} 46. h3 {[%emt 0:00:07]} Bf5 {[%emt 0:00:07]} 47. g4 {[%emt 0:00:11]} hxg4 {[%emt 0:00:02]} 48. hxg4 {[%emt 0:00:01]} Bxg4 {[%emt 0:00:01]} 49. Bxa5+ {[%emt 0:00:01]} Kxa5 {[%emt 0:00:03] Weighted Error Value: White=0.19 (very precise) /Black=0.23 (precise)} 1/2-1/2